Workbook

Sheet Identification
D2: DEMANDE DE PAIEMENT DE FRAIS
D3: Identification des personnes
A4: Les cases complétées à la présente page sont reportées automatiquement ailleurs dans le formulaire, lorsque requis.
A5: Numéro de dossier : | B5: R-4141-2020 | C5: Période couverte : | D5: Janvier 2021 à octobre 2021
A6: Nom de l'intervenant : | B6: Option consommateurs
A7: S'agit-il d'un regroupement? (oui/non) | D7: Non
A8: Taxes remboursées par le gouvernement? (0%, 50%, 100%) | D8: 50%
A9: Membre responsable du paiement des factures : | D9: N/A
A10: IDENTIFICATION DES PERSONNES
A11: Nom des avocats | B11: Expérience1 | C11: Interne/externe2 | D11: Adresse du lieu habituel de travail
A12: Éric McDevitt David | B12: 15+ | C12: Externe | D12: 485 rue McGill, bureau 500, Montréal, Québec, H2Y 2H4
A16: Nom des analystes | B16: Expérience1 | C16: Interne/externe2 | D16: Adresse du lieu habituel de travail
A17: Pascal Cormier | B17: 15+ | C17: Externe | D17: 4299, avenue de Lorimier, Montréal (Québec) H2H 2A9
A18: Sylvie De Bellefeuille | B18: 15+ | C18: Interne | D18: 440-50, rue Ste-Catherine Ouest, Montréal (Québec) H2X 3V4
A19: George Iny | B19: 15+ | C19: Interne | D19: 292, boul. St-Joseph Ouest, Montréal (Québec) H2V 2N7
A21: Nom des témoins experts | B21: Expérience1 | C21: Interne/externe2 | D21: Adresse du lieu habituel de travail
B22: n/a | C22: n/a
A24: Nom des coordonnateurs | B24: Expérience1 | C24: Interne/externe2 | D24: Adresse du lieu habituel de travail
B25: n/a
A28: 1 Correspond au nombre d'années d'exercice du droit ou de la profession complétées au début du dossier.
A29: 2 Une ressource est interne si elle est à l'emploi de l'intervenant.
A30: BUDGET
A31: DEMANDE DE PAIEMENT DE FRAIS

Sheet Sommaire des frais
D1: DEMANDE DE PAIEMENT DE FRAIS
D2: Sommaire des frais
A3: Les cases reliées aux frais intérimaires reçus et au budget approuvé doivent être complétées par l'intervenant. Les autres renseignements doivent être complétés aux pages 1, 3, 4 et 5.
A4: Numéro de dossier : | B4: =Identification!B5 -> R-4141-2020 | C4: Période couverte : | D4: =Identification!D5 -> Janvier 2021 à octobre 2021
A5: Nom de l'intervenant : | B5: =Identification!B6:D6 -> Option consommateurs
A6: HONORAIRES
A7: Type de ressources | B7: Heures de préparation et d'audience | D7: Honoraires
B8: Préparation : | C8: Audience : | D8: (incl. TPS/TVQ admissibles)
A9: Avocat | B9: =Honoraires!C14 -> 72.00 | C9: =Honoraires!D14 -> 15.00 | D9: =Honoraires!H14 -> 28,054.24 $
B10: case 1 (réf. case 23) | C10: case 5 (réf. case 24) | D10: case 11 (réf. case 27)
A11: Analyste | B11: =Honoraires!C20 -> 133.50 | C11: =Honoraires!D20 -> 45.00 | D11: =Honoraires!H20 -> 33,632.85 $
B12: case 2 (réf. case 28) | C12: case 6 (réf. case 29) | D12: case 12 (réf. case 32)
A13: Témoin expert | B13: =Honoraires!C24 -> 0.00 | C13: =Honoraires!D24 -> 0.00 | D13: =Honoraires!H24 -> 0
B14: case 3 (réf. case 33) | C14: case 7 (réf. case 34) | D14: case 13 (réf. case 37)
A15: Coordonnateur | B15: =Honoraires!C28 -> 0.00 | C15: =Honoraires!D28 -> 0.00 | D15: =Honoraires!H28 -> 0
B16: case 4 (réf. case 38) | C16: case 8 (réf. case 39) | D16: case 14 (réf. case 42)
A17: TOTAL / TEMPS ET HONORAIRES | B17: =B9+B11+B13+B15 -> 205.5 | C17: =C9+C11+C13+C15 -> 60.0 | D17: =D9+D11+D13+D15 -> 61,687.09 $
B18: case 9 (somme des cases 1 à 4) | C18: case 10 (somme des cases 5 à 8) | D18: case 15 (somme des cases 11 à 14)
A19: DÉPENSES
A20: Type de dépenses | D20: Dépenses (incl. TPS/TVQ admissibles)
A21: Allocation forfaitaire (3% du total des honoraires) | D21: =ROUND(0.03*D17,2) -> 1,850.61 $
D22: case 16 (3% de la case 15)
A23: Dépenses d'hébergement et de transport (si déplacement de plus de 100 km) | D23: ='Dépenses '!F21 -> 0
D24: case 17 (réf. case 46)
A25: Dépense de traduction | D25: ='Dépenses '!F27 -> 0
D26: case 18 (réf. case 47)
A27: TOTAL DES DÉPENSES | D27: =D21+D23+D25 -> 1,850.61 $
D28: case 19 (somme des cases 16 à 18)
A29: SÉANCES DE TRAVAIL | D29: ='Séances de travail'!G20 -> 0
D30: case 20 (réf. case 48)
A31: TOTAL DES FRAIS RÉCLAMÉS PAR L'INTERVENANT | D31: =D17+D27+D29 -> 63,537.70 $
D32: case 21 (somme des cases 15, 19 et 20)
A33: FRAIS INTÉRIMAIRE REÇUS | D33: 0
D34: case 22
A35: BUDGET APPROUVÉ ET ÉCART (%) | C35: 51,780.98 $ | D35: =ROUND((D31-C35)/C35,4) -> 22.7%
A36: Tout écart de plus de 3% entre le total des frais réclamés et le budget approuvé doit être justifié dans une lettre accompagnant la présente demande de paiement de frais.

Sheet Honoraires
H1: DEMANDE DE PAIEMENT DE FRAIS
H2: Honoraires
A3: Les cases non ombragées doivent être complétées par l'intervenant.
A4: Numéro de dossier : | C4: =Identification!B5 -> R-4141-2020 | D4: Période couverte : | F4: =Identification!D5 -> Janvier 2021 à octobre 2021
A5: Nom de l'intervenant : | C5: =Identification!B6 -> Option consommateurs
B6: HONORAIRES
A8: Type de ressources | C8: Heures | E8: Taux horaire | F8: Sous-total | G8: TPS/TVQ (admissibles) | H8: Total
C9: Préparation | D9: Audience
A10: Avocat | B10: =Identification!A12 -> Éric McDevitt David | C10: 72.00 | D10: 15.00 | E10: 300.00 $ | F10: =ROUND(((D10*E10)+(C10*E10)),2) -> 26,100.00 $ | G10: 1,954.24 $ | H10: =ROUND(F10+G10,2) -> 28,054.24 $
B11: =Identification!A13 -> 0 | F11: =ROUND(((D11*E11)+(C11*E11)),2) -> 0.00 $ | H11: =ROUND(F11+G11,2) -> 0.00 $
B12: =Identification!A14 -> 0 | F12: =ROUND(((D12*E12)+(C12*E12)),2) -> 0.00 $ | H12: =ROUND(F12+G12,2) -> 0.00 $
B13: =Identification!A15 -> 0 | F13: =ROUND(((D13*E13)+(C13*E13)),2) -> 0.00 $ | H13: =ROUND(F13+G13,2) -> 0.00 $
B14: Total : | C14: =SUM(C10:C13) -> 72.00 | D14: =SUM(D10:D13) -> 15.00 | F14: =F10+F11+F12+F13 -> 26,100.00 $ | G14: =G10+G11+G12+G13 -> 1,954.24 $ | H14: =ROUND(F14+G14,2) -> 28,054.24 $
C15: case 23 | D15: case 24 | F15: case 25 | G15: case 26 | H15: case 27
A16: Analyste | B16: =Identification!A17 -> Pascal Cormier | C16: 81.00 | D16: 15.00 | E16: 240.00 $ | F16: =ROUND(((D16*E16)+(C16*E16)),2) -> 23,040.00 $ | G16: 1,725.12 $ | H16: =ROUND(F16+G16,2) -> 24,765.12 $
B17: =Identification!A18 -> Sylvie De Bellefeuille | C17: 21.50 | D17: 15.00 | E17: 100.00 $ | F17: =ROUND(((D17*E17)+(C17*E17)),2) -> 3,650.00 $ | G17: 273.30 $ | H17: =ROUND(F17+G17,2) -> 3,923.30 $
B18: =Identification!A19 -> George Iny | C18: 31.00 | D18: 15.00 | E18: 100.00 $ | F18: =ROUND(((D18*E18)+(C18*E18)),2) -> 4,600.00 $ | G18: 344.43 $ | H18: =ROUND(F18+G18,2) -> 4,944.43 $
B19: =Identification!A20 -> 0 | F19: =ROUND(((D19*E19)+(C19*E19)),2) -> 0.00 $ | H19: =ROUND(F19+G19,2) -> 0.00 $
B20: Total : | C20: =SUM(C16:C19) -> 133.50 | D20: =SUM(D16:D19) -> 45.00 | F20: =F16+F17+F18+F19 -> 31,290.00 $ | G20: =G16+G17+G18+G19 -> 2,342.85 $ | H20: =ROUND(F20+G20,2) -> 33,632.85 $
C21: case 28 | D21: case 29 | F21: case 30 | G21: case 31 | H21: case 32
A22: T.É. | B22: =Identification!A22 -> 0 | F22: =ROUND(((D22*E22)+(C22*E22)),2) -> 0.00 $ | H22: =ROUND(F22+G22,2) -> 0.00 $
B23: =Identification!A23 -> 0 | F23: =ROUND(((D23*E23)+(C23*E23)),2) -> 0.00 $ | H23: =ROUND(F23+G23,2) -> 0.00 $
B24: Total : | C24: =SUM(C22:C23) -> 0.00 | D24: =SUM(D22:D23) -> 0.00 | F24: =F22+F23 -> 0.00 $ | G24: =G22+G23 -> 0.00 $ | H24: =ROUND(F24+G24,2) -> 0.00 $
C25: case 33 | D25: case 34 | F25: case 35 | G25: case 36 | H25: case 37
A26: Coor. | B26: =Identification!A25 -> 0 | F26: =ROUND(((D26*E26)+(C26*E26)),2) -> 0.00 $ | H26: =ROUND(F26+G26,2) -> 0.00 $
B27: =Identification!A26 -> 0 | F27: =ROUND(((D27*E27)+(C27*E27)),2) -> 0.00 $ | H27: =ROUND(F27+G27,2) -> 0.00 $
B28: Total : | C28: =SUM(C26:C27) -> 0.00 | D28: =SUM(D26:D27) -> 0.00 | F28: =F26+F27 -> 0.00 $ | G28: =G26+G27 -> 0.00 $ | H28: =ROUND(F28+G28,2) -> 0.00 $
C29: case 38 | D29: case 39 | F29: case 40 | G29: case 41 | H29: case 42
A30: TOTAL DES HONORAIRES | F30: =F14+F20+F24+F28 -> 57,390.00 $ | G30: =G14+G20+G24+G28 -> 4,297.09 $ | H30: =H14+H20+H24+H28 -> 61,687.09 $
F31: case 43 | G31: case 44 | H31: case 45
A34: L'intervenant doit conserver, durant une période de trois ans à compter de l'octroi des frais, un registre horaire pour toutes les personnes dont le travail fail l'objet d'une demande de paiement de frais ainsi que les pièces justificatives des honoraires et des dépenses réclamés. Le registre horaire doit contenir minimalement les renseignements suivants : le nom de la personne, la date d'exécution du travail, les heures facturées, le taux horaire et une brève description du travail effectué.

Sheet Dépenses
G1: DEMANDE DE PAIEMENT DE FRAIS
G2: Honoraires (suite)
A3: Les cases non ombragées doivent être complétées par l'intervenant.
A4: Numéro de dossier : | B4: =Identification!B5 -> R-4141-2020 | C4: Période couverte : | E4: =Identification!D5 -> Janvier 2021 à octobre 2021
A5: Nom de l'intervenant : | B5: =Identification!B6:D6 -> Option consommateurs
A6: Nom des personnes :
A7: DÉPENSES DE TRANSPORT ET D'HÉBERGEMENT1
A9: Transport | B9: Tarif | C9: Nombre de kilomètres | D9: Sous-total | E9: TPS/TVQ (admissibles) | F9: Total
A10: Automobile | B10: 0,470 $/km | D10: =ROUND(0.47*C10,2) -> 0 | F10: =ROUND(D10+E10,2) -> 0
A11: Autobus | B11: classe économique | F11: =ROUND(D11+E11,2) -> 0
A12: Train | F12: =ROUND(D12+E12,2) -> 0
A13: Avion | F13: =ROUND(D13+E13,2) -> 0
A15: Hébergement | B15: Tarif journalier | C15: Nombre de jours | D15: Sous-total | E15: TPS/TVQ (admissibles) | F15: Total
A16: Région de Montréal (maximum de 165,00 $ par jour avant taxes) | D16: =ROUND(B16*C16,2) -> 0 | F16: =ROUND(D16+E16,2) -> 0
A17: Région de Québec (maximum de 150,00 $ par jour avant taxes) | D17: =ROUND(B17*C17,2) -> 0 | F17: =ROUND(D17+E17,2) -> 0
A18: Région de Gatineau (maximum de 135,00 $ par jour avant taxes) | D18: =ROUND(B18*C18,2) -> 0 | F18: =ROUND(D18+E18,2) -> 0
A19: Ailleurs au Québec (maximum de 100,00 $ par jour avant taxes) | D19: =ROUND(B19*C19,2) -> 0 | F19: =ROUND(D19+E19,2) -> 0
A20: Hébergement privé (maximum de 95,00 $ par jour) | D20: =ROUND(B20*C20,2) -> 0 | E20: n/a | F20: =ROUND(B20*C20,2) -> 0
A21: TOTAL DES DÉPENSES DE TRANSPORT ET D'HÉBERGEMENT | D21: =D10+D11+D12+D13+D16+D17+D18+D19+D20 -> 0 | E21: =E10+E11+E12+E13+E16+E17+E18+E19 -> 0 | F21: =F10+F11+F12+F13+F16+F17+F18+F19+F20 -> 0
F22: case 46
A23: DÉPENSES DE TRADUCTION
A25: Traduction | B25: Tarif | C25: Nombre de mots | D25: Sous-total | E25: TPS/TVQ (admissibles) | F25: Total
A26: Traduction (maximum de 0,25 $/mot) | D26: =ROUND(B26*C26,2) -> 0 | F26: =ROUND(D26+E26,2) -> 0
A27: TOTAL DES DÉPENSES DE TRADUCTION | D27: =D26 -> 0 | E27: =E26 -> 0 | F27: =F26 -> 0
F28: case 47
A30: 1 L'intervenant doit, pour chaque montant réclamé, fournir les pièces justificatives et, lorsque le total réclamé réfère à plusieurs pièces, fournir une note qui concilie les dépenses encourues et les dépenses présentées sur ce formulaire.

Sheet Séances de travail
G1: DEMANDE DE PAIEMENT DE FRAIS
G2: Séances de travail
A3: Les cases non ombragées doivent être complétées par l'intervenant.
A4: Numéro de dossier : | C4: =Identification!B5 -> R-4141-2020 | D4: Période couverte : | F4: =Identification!D5 -> Janvier 2021 à octobre 2021
A5: Nom de l'intervenant : | C5: =Identification!B6 -> Option consommateurs
A6: SÉANCES DE TRAVAIL
A8: Date - séance (aaaa/mm/jj) | B8: Durée (heures) | C8: Nom des participants | D8: Interne/ externe1 | E8: Sous-total | F8: TPS/TVQ (admissibles) | G8: Total
G9: =SUM(E9:F9) -> 0
G10: =SUM(E10:F10) -> 0
G11: =SUM(E11:F11) -> 0
G12: 0
G13: 0
G14: 0
G15: 0
G16: 0
G17: 0
G18: 0
G19: 0
A20: TOTAL DES SÉANCES DE TRAVAIL | E20: =SUM(E9:E19) -> 0 | F20: =SUM(F9:F19) -> 0 | G20: =SUM(G9:G19) -> 0
G21: case 48
A24: 1 Le participant à la séance de travail est une ressource interne s'il est à l'emploi de l'intervenant.

Sheet Affidavit
A1: AFFIDAVIT
A2: Numéro de dossier : | D2: =Identification!B5 -> R-4141-2020
A3: Nom de l'intervenant : | D3: =Identification!B6 -> Option consommateurs
A5: Je, soussigné, | C5: Éric McDevitt David | I5: , déclare solennement ce qui suit:
C6: (nom et occupation)
A7: 1. | B7: Je suis le mandataire dûment autorisé de l'intervenant pour déposer la présente demande de paiement de frais et j'ai une connaissance personnelle du dossier;
A8: 2. | B8: Les montants réclamés correspondent aux travaux effectués dans le présent dossier;
A9: 3. | B9: Les frais sont exacts et conformes au Guide de paiement de frais des intervenants;
A10: 4. | B10: Le registre horaire et les pièces justificatives existent, ils seront conservés durant le délai prescrit par le Guide et seront produits sur demande à la Régie.
A11: Déclaré solennellement devant moi, | H11: Et j'ai signé,
A12: à | F12: ,
A13: le | C13: e jour de
B14: jour | D14: mois | E14: année | H14: (signature de l'affiant)
A16: Commissaire à l'assermentation
A17: (nom, signature et sceau)
A20: Je, soussigné, | I20: , déclare solennement ce qui suit:
C21: (nom et occupation)
A22: 1. | B22: Je suis le mandataire dûment autorisé de | J22: , membre du
B23: regroupement intervenant; | E23: (nom du membre)
A24: 2. | B24: Ce membre est désigné par l'intervenant comme le responsable du paiement de toutes les factures du regroupement.
A25: Déclaré solennellement devant moi, | H25: Et j'ai signé,
A26: à | F26: ,
A27: le | C27: e jour de
B28: jour | D28: mois | E28: année | H28: (signature de l'affiant)
A30: Commissaire à l'assermentation
A31: (nom, signature et sceau)
